bitfinex/quotes_SOLUSD_20220218
["timestamp","ask_amount","ask_price","bid_price","bid_amount"]
[1645164914418,22.8029,94.939,94.882,0.02]
[1645164914419,1.48213628,94.939,94.882,0.02]
[1645164914619,1.48213628,94.941,94.882,0.02]
[1645164914820,1.48213628,94.943,94.882,0.02]
[1645164915022,1.48213628,94.944,94.882,0.02]
[1645164915221,1.48213628,94.945,94.882,0.02]
[1645164915919,1.48213628,94.946,94.882,0.02]
[1645164916319,29.0357,94.957,94.883,2.65628592]
[1645164916320,1.48213628,94.949,94.883,2.65628592]
[1645164916523,1.48213628,94.952,94.884,24.9287]
[1645164916719,1.48213628,94.953,94.884,30.1957]
[1645164916919,1.48213628,94.952,94.885,2.65628592]
[1645164917219,1.48213628,94.958,94.887,46.47536318]
[1645164917621,1.48213628,94.958,94.888,2.65628592]
[1645164917819,1.48213628,94.958,94.889,5.267]
[1645164918119,1.48213628,94.961,94.89,18.46018592]
[1645164918520,1.48213628,94.961,94.891,7.92328592]
[1645164918719,1.48213628,94.96,94.891,7.92328592]
[1645164918920,1.48213628,94.96,94.892,2.65628592]
[1645164919721,1.48213628,94.959,94.892,2.65628592]
[1645164920019,1.48213628,94.96,94.892,2.65628592]
[1645164920318,1.48213628,94.963,94.892,2.65628592]
[1645164920620,1.48213628,94.964,94.892,2.65628592]
[1645164921219,1.48213628,94.965,94.892,2.65628592]
[1645164921421,5.267,94.964,94.892,2.65628592]
[1645164921620,6.74913628,94.964,94.892,2.65628592]
[1645164921822,1.48213628,94.966,94.892,2.65628592]
[1645164922020,5.267,94.965,94.892,2.65628592]
[1645164922620,1.48213628,94.967,94.892,2.65628592]
[1645164922821,5.267,94.966,94.892,2.65628592]
[1645164923424,1.48213628,94.969,94.892,2.65628592]
[1645164923624,5.267,94.968,94.892,2.65628592]
[1645164925526,5.267,94.969,94.892,2.67628592]
[1645164925927,5.267,94.969,94.893,2.65628592]
[1645164926932,6.74913628,94.969,94.893,2.65628592]
[1645164927728,1.48213628,94.968,94.893,2.65628592]
[1645164927930,5.267,94.967,94.893,2.65628592]
[1645164928228,6.74913628,94.967,94.893,2.65628592]
[1645164928529,1.48213628,94.967,94.893,2.65628592]
[1645164928729,5.267,94.966,94.893,2.65628592]
[1645164928929,1.48213628,94.968,94.893,2.65628592]
[1645164929229,5.267,94.967,94.893,2.65628592]
[1645164929431,1.48213628,94.97,94.893,2.65628592]
[1645164929632,5.266,94.968,94.893,2.65628592]
[1645164929830,5.266,94.969,94.893,2.65628592]
[1645164930131,5.266,94.969,94.892,0.02]
[1645164930529,5.266,94.969,94.9,15.8023]
[1645164930730,5.266,94.969,94.902,52.56214585]
[1645164930931,1.48213628,94.972,94.902,52.56214585]
[1645164931141,5.266,94.97,94.902,52.56214585]
[1645164931337,5.266,94.971,94.902,52.56214585]
[1645164931536,1.48213628,94.97,94.902,52.56214585]
[1645164932039,53.98981381,94.968,94.902,52.56214585]
[1645164932536,5.266,94.967,94.902,52.56214585]
[1645164933544,5.266,94.971,94.902,52.56214585]
[1645164935864,5.266,94.971,94.902,52.58214585]
[1645164936161,6.74813628,94.971,94.902,52.58214585]
[1645164936362,1.48213628,94.971,94.902,52.58214585]
[1645164937461,1.48213628,94.972,94.902,52.58214585]
[1645164937662,5.266,94.971,94.902,52.58214585]
[1645164938566,1.48213628,94.965,94.902,52.58214585]
[1645164938766,49.77462225,94.964,94.902,52.58214585]
[1645164939568,108.55628592,94.963,94.902,0.02]
[1645164939865,1.48213628,94.938,94.902,0.02]
[1645164940064,1.48213628,94.935,94.902,0.02]
[1645164940366,8.25875374,94.96,94.902,0.02]
[1645164940565,5.267,94.936,94.902,0.02]
[1645164940768,108.55628592,94.958,94.902,0.02]
[1645164940769,24.8501,94.937,94.902,0.02]
[1645164941067,30.1171,94.937,94.902,0.02]
[1645164941270,24.8501,94.937,94.902,0.02]
[1645164941867,121.7067,94.97,94.902,0.02]
[1645164942070,29.9189,94.969,94.902,0.02]
[1645164942879,44.24730761,94.968,94.902,0.02]
[1645164943073,5.266,94.967,94.902,0.02]
[1645164945878,5.266,94.967,94.882,49.24464623]
[1645164948977,5.266,94.967,94.883,105.9]
[1645164949179,5.266,94.967,94.89,15.8031]
[1645164949381,24.6519,94.969,94.891,5.267]
[1645164949678,24.6519,94.969,94.892,22.9087]
[1645164949888,5.267,94.989,94.893,111.167]
[1645164950082,42.19779206,94.996,94.895,105.9]
[1645164950283,23.3829,94.995,94.896,5.266]
[1645164950480,23.3829,94.995,94.911,105.9]
[1645164950680,23.3829,94.995,94.914,48.22652427]
[1645164951089,5.265,95.003,94.915,105.9]
[1645164951290,8.25775374,95.015,94.92,15.27]
[1645164951490,33.19895374,95.017,94.921,111.164]
[1645164951683,5.98799908,95.014,94.921,111.164]
[1645164951885,5.98799908,95.016,94.921,113.82028592]
[1645164952085,44.28696996,95.015,94.921,7.92028592]
[1645164952284,11.25199908,95.014,94.92,31.0671]
[1645164952485,8.98075282,95.013,94.92,31.0671]
[1645164952684,5.265,95.012,94.92,31.0671]
[1645164952886,5.98799908,95.011,94.92,31.0671]
[1645164953289,113.82128592,95.01,94.92,31.0671]
[1645164953488,5.98799908,95.009,94.92,31.0671]
[1645164953689,5.265,95.008,94.92,31.0671]
[1645164954089,105.9,95.006,94.92,15.27]
[1645164954289,5.265,95.005,94.914,48.22652427]
[1645164954500,108.89275374,95.004,94.914,48.22652427]
[1645164954692,2.99275374,95.002,94.914,48.22652427]
[1645164954902,105.9,94.997,94.914,48.22652427]
[1645164955096,105.9,94.995,94.914,48.22652427]
[1645164955294,45.71161326,94.998,94.914,48.22652427]
[1645164955295,105.9,94.993,94.914,48.22652427]
[1645164955497,105.9,94.991,94.914,48.22652427]
[1645164956095,105.9,94.989,94.89,15.27]
[1645164956300,105.9,94.987,94.92,0.02]
[1645164956498,105.9,94.985,94.92,0.02]
[1645164956697,105.9,94.983,94.92,0.02]
[1645164957097,105.9,94.979,94.92,0.02]
[1645164957298,15.807,94.97,94.92,0.02]
[1645164957500,134.6858,94.969,94.92,0.02]
[1645164957698,136.5398,94.969,94.92,0.02]
[1645164958301,121.7082,94.96,94.914,0.02]
[1645164958504,39.44230497,94.959,94.914,0.02]
[1645164958801,5.266,94.958,94.914,0.02]
[1645164959202,24.0397,94.957,94.914,0.02]
[1645164959405,111.166,94.956,94.914,0.02]
[1645164959604,15.8085,94.95,94.914,0.02]
[1645164959804,5.266,94.949,94.914,0.02]
[1645164960406,2.65628592,94.948,94.914,0.02]
[1645164960606,5.266,94.947,94.914,0.02]
[1645164961427,105.9,94.939,94.914,0.02]
[1645164961627,105.9,94.937,94.914,0.02]
[1645164962832,5.267,94.936,94.914,0.02]
[1645164965133,121.7119,94.93,94.914,0.02]
[1645164965533,5.267,94.929,94.914,0.02]
[1645164969635,121.7119,94.93,94.914,0.02]
[1645164970237,105.9,94.928,94.914,0.02]
[1645164971140,5.267,94.927,94.914,0.02]
[1645164971541,105.9,94.919,94.875,0.02]
[1645164971739,105.9,94.917,94.875,0.02]
[1645164972541,105.9,94.915,94.875,0.02]
[1645164974948,24.3176,94.916,94.875,0.02]
[1645164975252,5.268,94.923,94.875,0.02]
[1645164975446,24.5907,94.939,94.875,0.02]
[1645164975945,41.70743928,94.938,94.875,0.02]
[1645164977351,105.9,94.937,94.875,0.02]
[1645164977551,121.7121,94.93,94.875,0.02]
[1645164977757,15.8121,94.93,94.875,0.02]
[1645164977957,5.268,94.929,94.875,0.02]
[1645164981376,15.8121,94.93,94.875,0.02]
[1645164981574,5.268,94.937,94.875,0.02]
[1645164981874,41.70743928,94.938,94.862,51.08147454]
[1645164987484,111.168,94.937,94.862,51.08147454]
[1645164987681,113.82428592,94.937,94.862,51.08147454]
[1645164988183,2.65628592,94.936,94.862,51.08147454]
[1645164988382,5.268,94.935,94.862,51.08147454]
[1645164989482,121.7119,94.93,94.862,51.08147454]
[1645164989889,5.268,94.929,94.863,24.2962]
[1645164992988,15.8119,94.93,94.863,24.2962]
[1645164993187,121.7119,94.93,94.863,24.2962]
[1645164995488,5.268,94.929,94.863,24.2962]
[1645164995688,44.52171978,94.919,94.863,24.2962]
[1645164995892,105.9,94.918,94.863,24.2962]
[1645164996089,5.269,94.917,94.863,24.2962]
[1645164996989,5.269,94.917,94.863,24.3162]
[1645165003501,105.9,94.918,94.863,24.3162]
[1645165007205,105.9,94.918,94.863,24.2962]
[1645165008005,105.9,94.909,94.863,24.2962]
[1645165008207,105.9,94.909,94.862,0.02]
[1645165008406,105.9,94.907,94.862,0.02]
[1645165009011,105.9,94.899,94.862,0.02]
[1645165009610,5.269,94.898,94.862,0.02]
[1645165010210,105.9,94.896,94.862,0.02]
[1645165010410,105.9,94.887,94.862,0.02]
[1645165011511,5.269,94.886,94.862,0.02]
[1645165012213,105.9,94.879,94.862,0.02]
[1645165012422,5.269,94.878,94.862,0.02]
[1645165014816,5.269,94.878,94.798,52.5416049]
[1645165015018,121.7256,94.85,94.798,52.5416049]
[1645165015216,42.99626585,94.849,94.798,52.5416049]
[1645165016617,42.99626585,94.849,94.782,24.6011]
[1645165017017,42.99626585,94.849,94.783,26.24155363]
[1645165017620,42.99626585,94.849,94.784,54.20097214]
[1645165018221,42.99626585,94.849,94.785,26.24155363]
[1645165019324,5.273,94.848,94.785,26.24155363]
[1645165019624,121.727,94.84,94.784,54.20097214]
[1645165020223,15.827,94.84,94.784,54.20097214]
[1645165020824,121.727,94.84,94.784,54.20097214]
[1645165022647,121.727,94.84,94.782,24.6011]
[1645165026050,121.727,94.84,94.775,52.66037188]
[1645165026253,105.9,94.829,94.775,52.66037188]
[1645165028052,15.8298,94.83,94.775,52.66037188]
[1645165028251,111.174,94.846,94.776,23.5591]
[1645165028658,111.174,94.846,94.777,2.65628592]
[1645165029358,5.274,94.846,94.777,2.65628592]
[1645165029959,23.9665,94.847,94.777,2.65628592]
[1645165030568,42.99626585,94.849,94.777,2.65628592]
[1645165035162,129.6312,94.848,94.776,23.5591]
[1645165035363,134.9042,94.848,94.776,23.5591]
[1645165036363,121.7272,94.84,94.776,23.5591]
[1645165036566,5.273,94.839,94.776,23.5591]
[1645165036764,121.7272,94.84,94.776,23.5591]
[1645165036968,15.8272,94.84,94.776,23.5591]
[1645165037867,121.7272,94.84,94.776,23.5591]
[1645165038565,15.8272,94.84,94.776,23.5591]
[1645165038768,121.7272,94.84,94.776,23.5591]
[1645165039765,15.8272,94.84,94.776,23.5591]
[1645165039966,5.273,94.847,94.776,23.5591]
[1645165040167,42.99626585,94.849,94.777,7.92928592]
[1645165040565,42.99626585,94.849,94.778,2.65628592]
[1645165040767,42.99626585,94.849,94.779,5.273]
[1645165040966,42.99626585,94.849,94.78,15.27]
[1645165041170,15.8249,94.86,94.78,17.92628592]
[1645165041369,24.8286,94.869,94.781,108.55628592]
[1645165041568,5.273,94.879,94.781,113.82928592]
[1645165041769,28.4478,94.889,94.782,2.65628592]
[1645165041968,105.9,94.883,94.783,5.272]
[1645165042174,105.9,94.881,94.783,5.272]
[1645165042369,105.9,94.881,94.784,2.65628592]
[1645165042569,5.272,94.88,94.784,2.65628592]
[1645165043370,5.272,94.88,94.79,15.8195]
[1645165043569,5.272,94.88,94.791,24.6529]
[1645165043869,5.272,94.88,94.791,27.30918592]
[1645165044068,5.272,94.88,94.792,2.65628592]
[1645165044468,108.55628592,94.879,94.791,24.6529]
[1645165044672,5.272,94.878,94.791,24.6529]
[1645165044870,105.9,94.877,94.791,24.6529]
[1645165045068,108.55628592,94.877,94.791,24.6529]
[1645165045280,105.9,94.875,94.791,24.6529]
[1645165045470,5.272,94.874,94.791,24.6529]
[1645165046572,105.9,94.869,94.791,24.6529]
[1645165046971,5.272,94.868,94.791,24.6529]
[1645165047373,105.9,94.867,94.791,24.6529]
[1645165047572,108.55628592,94.867,94.791,24.6529]
[1645165047773,5.272,94.866,94.791,24.6529]
[1645165047974,105.9,94.865,94.791,24.6529]
[1645165048172,5.272,94.864,94.791,24.6529]
[1645165048374,105.9,94.859,94.791,24.6529]
[1645165048973,5.272,94.858,94.791,24.6529]
[1645165050476,121.726,94.85,94.791,24.6529]
[1645165050676,15.826,94.85,94.791,24.6529]
[1645165054480,121.726,94.85,94.791,24.6529]
[1645165055583,15.826,94.85,94.791,24.6529]
[1645165056786,121.726,94.85,94.791,24.6529]
[1645165060693,15.8273,94.84,94.791,24.6529]
[1645165060893,111.173,94.839,94.791,24.6529]
[1645165062891,5.273,94.839,94.791,24.6529]
[1645165063492,22.5471,94.848,94.791,24.6529]
[1645165074227,22.5471,94.848,94.761,34.06850725]
[1645165074425,22.5471,94.848,94.776,24.2583]
[1645165074827,22.5471,94.848,94.777,26.36916984]
[1645165082939,105.9,94.847,94.777,26.36916984]
[1645165083342,15.8273,94.84,94.777,26.36916984]
[1645165083740,105.9,94.839,94.776,24.2583]
[1645165083940,112.66953149,94.839,94.776,24.2583]
[1645165084339,5.273,94.839,94.776,24.2583]
[1645165084540,6.76953149,94.839,94.776,24.2583]
[1645165084742,105.9,94.838,94.776,67.881179]
[1645165084946,5.273,94.837,94.776,67.881179]
[1645165085140,5.273,94.837,94.776,24.2583]
[1645165085341,15.8301,94.83,94.776,24.2583]
[1645165086142,49.18330485,94.829,94.776,24.2583]
[1645165087143,15.8305,94.82,94.776,24.2583]
[1645165094151,49.18330485,94.829,94.776,24.2583]
[1645165108498,105.9,94.828,94.776,24.2583]
[1645165109695,5.274,94.827,94.776,24.2583]
[1645165110098,15.8304,94.82,94.776,24.2583]
[1645165110297,15.8304,94.82,94.762,23.5691]
[1645165110496,23.2409,94.819,94.763,68.62162352]
[1645165116402,49.18330485,94.829,94.763,68.62162352]
[1645165116602,49.18330485,94.829,94.764,2.65628592]
[1645165116803,49.18330485,94.829,94.764,29.02638208]
[1645165117202,49.18330485,94.829,94.765,26.37009616]
[1645165117403,49.18330485,94.829,94.77,15.27]
[1645165117606,5.274,94.839,94.77,15.27]
[1645165118003,5.274,94.839,94.771,29.02638208]
[1645165118407,1.49653149,94.841,94.772,26.37009616]
[1645165118606,46.50732021,94.84,94.772,26.37009616]
[1645165118806,107.39653149,94.839,94.77,15.27]
[1645165119007,1.49653149,94.838,94.763,68.62162352]
[1645165119206,1.49653149,94.837,94.763,68.62162352]
[1645165119608,105.9,94.835,94.764,26.38065216]
[1645165120506,15.8288,94.83,94.764,26.38065216]
[1645165120906,15.8288,94.83,94.763,68.62162352]
[1645165122507,105.9,94.829,94.763,68.62162352]
[1645165123807,5.274,94.828,94.763,68.62162352]
[1645165125010,5.274,94.829,94.764,26.39135332]
[1645165127118,1.49653149,94.833,94.765,108.55628592]
[1645165127317,1.49653149,94.845,94.78,15.27]
[1645165127516,1.49653149,94.853,94.781,28.8185]
[1645165127815,1.49653149,94.854,94.782,26.39135332]
[1645165128017,51.82869701,94.853,94.782,26.39135332]
[1645165128218,51.82869701,94.853,94.783,26.39135332]
[1645165128618,51.82869701,94.853,94.784,26.39135332]
[1645165129018,51.82869701,94.853,94.785,26.39135332]
[1645165129417,51.82869701,94.853,94.782,2.65628592]
[1645165129822,51.82869701,94.853,94.783,26.35813178]
[1645165130432,24.0614,94.859,94.79,15.8209]
[1645165130637,24.0614,94.859,94.79,31.0909]
[1645165131434,50.53836375,94.858,94.79,31.0909]
[1645165132334,105.9,94.857,94.781,28.8185]
[1645165132536,112.66953149,94.857,94.781,28.8185]
[1645165132737,1.49653149,94.845,94.781,28.8185]
[1645165132946,1.49653149,94.843,94.781,28.8185]
[1645165133137,1.49653149,94.838,94.781,28.8185]
[1645165133340,1.49653149,94.836,94.781,28.8185]
[1645165133539,1.49653149,94.835,94.781,28.8185]
[1645165133938,5.273,94.834,94.781,28.8185]
[1645165134337,15.8291,94.83,94.781,28.8185]
[1645165134538,49.28970406,94.829,94.781,23.5465]
[1645165136845,15.8302,94.82,94.781,23.5465]
[1645165137646,49.28970406,94.829,94.781,23.5465]
[1645165137847,44.01670406,94.829,94.781,23.5465]
[1645165142952,5.273,94.828,94.781,23.5465]
[1645165146357,44.01670406,94.829,94.781,23.5465]
[1645165151267,15.8286,94.83,94.781,23.5465]
[1645165151470,5.273,94.841,94.781,23.5465]
[1645165151764,17.32333149,94.85,94.781,23.5465]
[1645165151964,5.273,94.849,94.781,23.5465]
[1645165152364,42.34098334,94.842,94.781,23.5465]
[1645165154268,105.9,94.841,94.781,23.5465]
[1645165154471,5.273,94.84,94.781,23.5465]
[1645165154869,21.1003,94.84,94.781,23.5465]
[1645165155570,1.49653149,94.837,94.781,23.5465]
[1645165155770,5.273,94.836,94.781,23.5465]
[1645165156592,1.49653149,94.837,94.781,23.5465]
[1645165156793,5.273,94.836,94.781,23.5465]
[1645165157493,15.8286,94.83,94.781,23.5465]
[1645165157696,5.273,94.829,94.781,23.5465]
[1645165158396,4.763,94.829,94.781,23.5465]
[1645165160395,15.8286,94.83,94.781,23.5465]
[1645165167204,1.49653149,94.835,94.781,23.5465]
[1645165167403,5.273,94.84,94.781,23.5465]
[1645165167404,1.49653149,94.836,94.781,23.5465]
[1645165167606,1.49653149,94.84,94.782,108.55628592]
[1645165167802,1.49653149,94.854,94.79,15.27]
[1645165168301,1.49653149,94.856,94.791,2.65628592]
[1645165168502,1.49653149,94.857,94.792,50.92393836]
[1645165168704,54.60850558,94.858,94.792,74.35393836]
[1645165168905,54.60850558,94.858,94.793,2.65628592]
[1645165169303,53.11197409,94.858,94.793,2.65628592]
[1645165169703,53.11197409,94.858,94.792,74.35393836]
[1645165169905,23.2556,94.857,94.792,74.35393836]
[1645165180713,23.2556,94.857,94.792,77.01022428]
[1645165180918,23.2556,94.857,94.792,74.35393836]
[1645165183919,23.2556,94.857,94.793,2.65628592]
[1645165193521,1.49653149,94.863,94.793,108.55628592]
[1645165193727,1.49653149,94.863,94.801,105.9]
[1645165193924,1.49653149,94.88,94.811,105.9]
[1645165194123,1.49653149,94.885,94.82,15.27]
[1645165194324,1.49653149,94.885,94.83,15.27]
[1645165194528,1.49653149,94.886,94.831,75.03884086]
[1645165194925,1.49653149,94.889,94.831,75.03884086]
[1645165195325,1.49653149,94.886,94.831,75.03884086]
[1645165195727,1.49653149,94.885,94.831,75.03884086]
[1645165196025,1.49653149,94.887,94.831,75.03884086]
[1645165196430,1.49653149,94.888,94.831,75.03884086]
[1645165196626,1.49653149,94.886,94.831,75.03884086]
[1645165196828,1.49653149,94.887,94.831,75.03884086]
[1645165197030,1.49653149,94.886,94.831,75.03884086]
[1645165197444,1.49653149,94.887,94.831,75.03884086]
[1645165197646,1.49653149,94.891,94.831,75.03884086]
[1645165198646,23.8136,94.897,94.831,75.03884086]
[1645165198647,1.49653149,94.89,94.831,75.03884086]
[1645165198846,1.49653149,94.892,94.831,75.03884086]
[1645165199548,1.49653149,94.893,94.831,75.03884086]
[1645165200448,1.49653149,94.89,94.831,75.03884086]
[1645165200649,1.49653149,94.893,94.831,75.03884086]
[1645165201950,1.49653149,94.894,94.831,75.03884086]
[1645165203455,1.49653149,94.893,94.831,75.03884086]
[1645165204156,1.49653149,94.894,94.831,75.03884086]
[1645165204354,55.94170039,94.895,94.831,75.03884086]
[1645165204756,1.49653149,94.893,94.831,75.03884086]
[1645165204954,1.49653149,94.894,94.831,75.03884086]
[1645165205554,55.94170039,94.895,94.831,75.03884086]
[1645165205756,1.49653149,94.894,94.831,75.03884086]
[1645165206555,1.49653149,94.893,94.831,75.03884086]
[1645165206757,6.76553149,94.894,94.831,75.03884086]
[1645165206954,1.49653149,94.893,94.831,75.03884086]
[1645165207759,1.49653149,94.892,94.831,75.03884086]
[1645165209260,1.49653149,94.891,94.831,75.03884086]
[1645165209657,1.49653149,94.89,94.831,75.03884086]
[1645165212160,1.49653149,94.89,94.831,23.8051]
[1645165212362,1.49653149,94.889,94.831,23.8051]
[1645165212559,1.49653149,94.887,94.831,23.8051]
[1645165212759,105.9,94.885,94.83,15.27]
[1645165212967,105.9,94.885,94.795,23.9808]
[1645165212968,105.9,94.883,94.801,2.65628592]
[1645165213163,1.49653149,94.876,94.789,49.92774745]
[1645165213361,1.49653149,94.863,94.789,49.92774745]
[1645165213562,1.49653149,94.856,94.789,49.92774745]
[1645165213760,105.9,94.854,94.789,49.92774745]
[1645165213960,1.49653149,94.856,94.789,49.92774745]
[1645165214162,15.8259,94.85,94.789,49.92774745]
[1645165214363,5.272,94.859,94.789,49.92774745]
[1645165218262,5.272,94.859,94.79,2.65628592]
[1645165218462,24.8049,94.86,94.79,2.65628592]
[1645165219062,24.8049,94.86,94.79,17.92628592]
[1645165219465,24.8049,94.86,94.791,2.65628592]
[1645165219862,24.8049,94.86,94.792,22.6141]
[1645165220263,24.8049,94.86,94.793,2.65628592]
[1645165222368,24.8049,94.86,94.793,0.56628592]
[1645165222568,24.8049,94.86,94.794,2.65628592]
[1645165222969,24.8049,94.86,94.793,2.65628592]
[1645165223969,105.9,94.859,94.792,22.6141]
[1645165225571,40.6284,94.86,94.792,22.6141]
[1645165226877,5.272,94.859,94.792,22.6141]
[1645165229978,40.6284,94.86,94.792,22.6141]
[1645165231178,5.272,94.859,94.792,22.6141]
[1645165234281,6.76853149,94.859,94.792,22.6141]
[1645165234481,5.272,94.859,94.792,22.6141]
[1645165235582,6.76853149,94.859,94.792,22.6141]
[1645165235783,5.272,94.859,94.792,22.6141]
[1645165236585,6.76853149,94.859,94.792,22.6141]
[1645165237384,1.49653149,94.858,94.792,22.6141]
[1645165237587,5.272,94.857,94.792,22.6141]
[1645165238583,6.76853149,94.857,94.792,22.6141]
[1645165238791,1.49653149,94.857,94.792,22.6141]
[1645165239191,40.6284,94.86,94.792,22.6141]
[1645165239986,42.12493149,94.86,94.792,22.6141]
[1645165240188,1.49653149,94.859,94.792,22.6141]
[1645165241087,42.12493149,94.86,94.792,22.6141]
[1645165241491,40.6284,94.86,94.792,22.6141]
[1645165241688,1.49653149,94.863,94.792,22.6141]
[1645165241888,1.49653149,94.863,94.8,15.27]
[1645165242497,1.49653149,94.866,94.8,15.27]
[1645165242695,46.10446093,94.865,94.801,5.272]
[1645165242889,46.10446093,94.865,94.8,15.27]
[1645165243492,46.10446093,94.865,94.8,31.0896]
[1645165246097,23.0076,94.864,94.8,31.0896]
[1645165249527,23.0076,94.864,94.8,33.74588592]
[1645165259739,5.272,94.863,94.8,33.74588592]
[1645165259940,23.0076,94.864,94.8,33.74588592]
[1645165261445,1.49653149,94.866,94.801,105.9]
[1645165261642,1.49653149,94.866,94.801,111.75]
[1645165261842,24.4182,94.899,94.801,111.75]
[1645165261843,1.49653149,94.882,94.811,105.9]
[1645165262041,1.49653149,94.883,94.82,15.27]
[1645165262244,1.49653149,94.883,94.821,24.4674]
[1645165262443,50.55341835,94.882,94.822,51.96285529]
[1645165262945,50.55341835,94.882,94.823,2.65628592]
[1645165263346,1.49653149,94.889,94.823,2.65628592]
[1645165263744,1.49653149,94.89,94.823,2.65628592]
[1645165263943,1.49653149,94.893,94.823,2.65628592]
[1645165264343,1.49653149,94.892,94.823,2.65628592]
[1645165264944,56.11886072,94.894,94.823,2.65628592]
[1645165265143,54.62232923,94.894,94.823,2.65628592]
[1645165265843,56.11886072,94.894,94.823,2.65628592]
[1645165266346,1.49653149,94.893,94.823,2.65628592]
[1645165267549,5.271,94.898,94.823,2.65628592]
[1645165267550,1.49653149,94.895,94.823,2.65628592]
[1645165267749,1.49653149,94.897,94.83,15.8145]
[1645165267948,1.49653149,94.898,94.83,31.0845]
[1645165268148,1.49653149,94.898,94.831,2.65628592]
[1645165268555,1.49653149,94.898,94.832,23.9897]
[1645165268759,54.85746418,94.897,94.832,23.9897]
[1645165268955,53.36093269,94.897,94.832,23.9897]
[1645165269656,1.49653149,94.889,94.832,23.9897]
[1645165269855,1.49653149,94.887,94.832,23.9897]
[1645165270756,1.49653149,94.888,94.832,23.9897]
[1645165270956,105.9,94.886,94.832,23.9897]
[1645165271158,5.269,94.885,94.832,23.9897]
[1645165271363,1.49653149,94.882,94.832,23.9897]
[1645165271556,1.49653149,94.881,94.832,23.9897]
[1645165271957,1.49653149,94.88,94.832,23.9897]
[1645165272160,1.49653149,94.881,94.832,23.9897]
[1645165272361,23.1355,94.884,94.832,23.9897]
[1645165272776,5.271,94.883,94.832,23.9897]
[1645165272976,6.76753149,94.883,94.832,23.9897]
[1645165273176,1.49653149,94.882,94.832,23.9897]
[1645165273376,6.76753149,94.881,94.832,23.9897]
[1645165273679,1.49653149,94.88,94.832,23.9897]
[1645165274077,5.271,94.879,94.832,23.9897]
[1645165274477,6.76753149,94.879,94.832,23.9897]
[1645165274677,1.49653149,94.883,94.832,23.9897]
[1645165275078,23.1355,94.884,94.832,23.9897]
[1645165280383,105.9,94.883,94.832,23.9897]
[1645165280583,112.66753149,94.883,94.832,23.9897]
[1645165280782,6.76753149,94.883,94.832,23.9897]
[1645165281187,1.49653149,94.882,94.832,23.9897]
[1645165281383,5.271,94.881,94.832,23.9897]
[1645165281983,24.63203149,94.884,94.832,23.9897]
[1645165282384,23.1355,94.884,94.832,23.9897]
[1645165285685,23.1355,94.884,94.82,40.67257678]
[1645165285888,105.9,94.879,94.811,23.397]
[1645165286086,1.49653149,94.876,94.811,23.397]
[1645165286288,1.49653149,94.875,94.811,23.397]
[1645165286488,1.49653149,94.881,94.812,2.65628592]
[1645165286886,1.49653149,94.881,94.813,54.0555416]
[1645165287292,1.49653149,94.881,94.813,56.71182752]
[1645165287487,1.49653149,94.883,94.813,56.71182752]
[1645165287688,1.49653149,94.882,94.813,56.71182752]
[1645165288091,1.49653149,94.881,94.813,56.71182752]
[1645165288290,1.49653149,94.882,94.813,56.71182752]
[1645165288690,1.49653149,94.881,94.813,56.71182752]
[1645165289092,1.49653149,94.881,94.814,105.9]
[1645165289395,23.1355,94.884,94.815,2.65628592]
[1645165290291,23.1355,94.884,94.82,15.8161]
[1645165290493,23.1355,94.884,94.83,15.27]
[1645165290691,23.1355,94.884,94.831,24.9595]
[1645165291093,23.1355,94.884,94.831,27.61578592]
[1645165294402,23.1355,94.884,94.831,24.9595]
[1645165294599,1.49653149,94.883,94.831,24.9595]
[1645165298212,24.63203149,94.884,94.831,24.9595]
[1645165298412,1.49653149,94.883,94.831,24.9595]
[1645165299433,23.1355,94.884,94.831,24.9595]